[Event "Late-Titled-Tuesday-Blitz-September-26-2023"]
[Site "Chess.com"]
[Date "2023.09.26"]
[Round "9"]
[White "Berardino"]
[Black "JG-17"]
[Result "1-0"]
[WhiteElo "2645"]
[BlackElo "2524"]
[TimeControl "180+1"]
[EndTime "15:39:04 PDT"]
[Termination "Berardino won by resignation"]

1. e4 {[%clk 0:03:00.9]} 1... c5 {[%clk 0:02:59.9]} 2. Nf3 {[%clk 0:02:59.6]}
2... d6 {[%clk 0:03:00.4]} 3. d4 {[%clk 0:02:59.5]} 3... cxd4 {[%clk 0:03:01.3]}
4. Nxd4 {[%clk 0:03:00]} 4... Nf6 {[%clk 0:03:02]} 5. Nc3 {[%clk 0:02:59.1]}
5... g6 {[%clk 0:03:02.7]} 6. Be3 {[%clk 0:02:54.4]} 6... Nc6 {[%clk 0:03:03.1]}
7. f3 {[%clk 0:02:54.8]} 7... h5 {[%clk 0:03:02.4]} 8. Bc4 {[%clk 0:02:38.3]}
8... Ne5 {[%clk 0:02:55.6]} 9. Bb3 {[%clk 0:02:37.1]} 9... Bg7 {[%clk 0:02:56]}
10. Qd2 {[%clk 0:02:35.3]} 10... Bd7 {[%clk 0:02:55.8]} 11. O-O-O {[%clk
0:02:35]} 11... Rc8 {[%clk 0:02:56.2]} 12. Kb1 {[%clk 0:02:31.5]} 12... Nc4
{[%clk 0:02:56.3]} 13. Bxc4 {[%clk 0:02:31.1]} 13... Rxc4 {[%clk 0:02:57.2]} 14.
Nd5 {[%clk 0:01:57.6]} 14... h4 {[%clk 0:02:42]} 15. c3 {[%clk 0:01:52.3]} 15...
Rh5 {[%clk 0:02:40.3]} 16. Bg5 {[%clk 0:01:37.8]} 16... Qa5 {[%clk 0:01:48.3]}
17. Nb3 {[%clk 0:01:32.5]} 17... Qb5 {[%clk 0:01:38.9]} 18. Nxf6+ {[%clk
0:01:08.5]} 18... exf6 {[%clk 0:01:37.9]} 19. Bf4 {[%clk 0:01:08.1]} 19... d5
{[%clk 0:01:19.1]} 20. exd5 {[%clk 0:00:44.4]} 20... Qa4 {[%clk 0:01:16.4]} 21.
Bd6 {[%clk 0:00:28.1]} 21... Bf5+ {[%clk 0:01:16.2]} 22. Ka1 {[%clk 0:00:27.9]}
22... Qxa2+ {[%clk 0:01:16.1]} 23. Kxa2 {[%clk 0:00:27.8]} 23... Ra4+ {[%clk
0:01:16.6]} 24. Ba3 {[%clk 0:00:28.1]} 1-0

[Event "Late-Titled-Tuesday-Blitz-September-26-2023"]
[Site "Chess.com"]
[Date "2023.09.26"]
[Round "9"]
[White "Alphafischer2019"]
[Black "scandalgod"]
[Result "1-0"]
[WhiteElo "2593"]
[BlackElo "2491"]
[TimeControl "180+1"]
[EndTime "15:39:24 PDT"]
[Termination "Alphafischer2019 won by resignation"]

1. Nf3 {[%clk 0:03:00.9]} 1... d5 {[%clk 0:02:58.8]} 2. g3 {[%clk 0:03:00.4]}
2... Nf6 {[%clk 0:02:59]} 3. Bg2 {[%clk 0:03:01.1]} 3... c6 {[%clk 0:02:58.4]}
4. O-O {[%clk 0:03:01.8]} 4... Bf5 {[%clk 0:02:56.9]} 5. d3 {[%clk 0:03:02.2]}
5... e6 {[%clk 0:02:57.3]} 6. b3 {[%clk 0:03:02.8]} 6... Be7 {[%clk 0:02:56.8]}
7. Nh4 {[%clk 0:03:02]} 7... Bg4 {[%clk 0:02:55.7]} 8. h3 {[%clk 0:03:01.4]}
8... Bh5 {[%clk 0:02:55.9]} 9. Bb2 {[%clk 0:03:00.4]} 9... O-O {[%clk
0:02:48.3]} 10. g4 {[%clk 0:03:00.6]} 10... Nfd7 {[%clk 0:02:44.5]} 11. Nf3
{[%clk 0:02:53.9]} 11... Bg6 {[%clk 0:02:44.5]} 12. Nbd2 {[%clk 0:02:53.6]}
12... c5 {[%clk 0:02:36.1]} 13. e3 {[%clk 0:02:53.4]} 13... Nc6 {[%clk
0:02:35.9]} 14. Qe2 {[%clk 0:02:53.8]} 14... Bf6 {[%clk 0:02:33.1]} 15. c3
{[%clk 0:02:44]} 15... Re8 {[%clk 0:02:30.7]} 16. Ne1 {[%clk 0:02:39.8]} 16...
a5 {[%clk 0:02:19]} 17. f4 {[%clk 0:02:25.2]} 17... h6 {[%clk 0:02:12.7]} 18.
Nef3 {[%clk 0:02:10.2]} 18... a4 {[%clk 0:02:09]} 19. bxa4 {[%clk 0:02:09.5]}
19... Rxa4 {[%clk 0:01:57.6]} 20. e4 {[%clk 0:02:09.8]} 20... c4 {[%clk
0:01:35.2]} 21. d4 {[%clk 0:01:58.1]} 21... dxe4 {[%clk 0:01:27.6]} 22. Nxe4
{[%clk 0:01:57.6]} 22... Nb6 {[%clk 0:01:09.7]} 23. Ne5 {[%clk 0:01:49.7]} 23...
Bxe5 {[%clk 0:00:52]} 24. fxe5 {[%clk 0:01:49.2]} 24... Nd5 {[%clk 0:00:52.2]}
25. Nc5 {[%clk 0:01:47.3]} 25... Ra7 {[%clk 0:00:41.5]} 26. Rf2 {[%clk
0:01:35.9]} 26... b6 {[%clk 0:00:40.9]} 27. Ne4 {[%clk 0:01:34.6]} 27... Qa8
{[%clk 0:00:28.6]} 28. Nd6 {[%clk 0:01:30.9]} 28... Ree7 {[%clk 0:00:25]} 29.
Qxc4 {[%clk 0:01:30.6]} 29... Ne3 {[%clk 0:00:20.4]} 30. Qxc6 {[%clk 0:01:29.1]}
30... Nxg2 {[%clk 0:00:17]} 31. Qxa8+ {[%clk 0:01:27.8]} 31... Rxa8 {[%clk
0:00:16.7]} 32. Kxg2 {[%clk 0:01:28.7]} 1-0

[Event "Late-Titled-Tuesday-Blitz-September-26-2023"]
[Site "Chess.com"]
[Date "2023.09.26"]
[Round "9"]
[White "Colombiano07"]
[Black "ferrufino64"]
[Result "0-1"]
[WhiteElo "2347"]
[BlackElo "2206"]
[TimeControl "180+1"]
[EndTime "15:39:27 PDT"]
[Termination "ferrufino64 won by checkmate"]

1. d4 {[%clk 0:02:25.6]} 1... d5 {[%clk 0:02:54.5]} 2. Nf3 {[%clk 0:02:25]} 2...
Nf6 {[%clk 0:02:45.7]} 3. c4 {[%clk 0:02:24.2]} 3... e6 {[%clk 0:02:46.1]} 4.
Nc3 {[%clk 0:02:23.6]} 4... Be7 {[%clk 0:02:46.6]} 5. Bg5 {[%clk 0:02:23]} 5...
O-O {[%clk 0:02:46.9]} 6. e3 {[%clk 0:02:23.2]} 6... b6 {[%clk 0:02:47.3]} 7.
Bxf6 {[%clk 0:02:22.3]} 7... Bxf6 {[%clk 0:02:47.5]} 8. cxd5 {[%clk 0:02:21.5]}
8... exd5 {[%clk 0:02:48.4]} 9. Bd3 {[%clk 0:02:20.3]} 9... c6 {[%clk
0:02:48.8]} 10. Qd2 {[%clk 0:02:20.2]} 10... a5 {[%clk 0:02:45.4]} 11. O-O-O
{[%clk 0:02:18.1]} 11... b5 {[%clk 0:02:42.8]} 12. h4 {[%clk 0:02:17.3]} 12...
Bg4 {[%clk 0:02:37.9]} 13. Kb1 {[%clk 0:02:15.8]} 13... Bxf3 {[%clk 0:02:35.9]}
14. gxf3 {[%clk 0:02:16.7]} 14... a4 {[%clk 0:02:32.7]} 15. e4 {[%clk
0:02:08.2]} 15... b4 {[%clk 0:02:29.7]} 16. Ne2 {[%clk 0:02:07.9]} 16... dxe4
{[%clk 0:02:20.6]} 17. Bxe4 {[%clk 0:01:59.2]} 17... Ra6 {[%clk 0:02:14.1]} 18.
Nf4 {[%clk 0:01:50.7]} 18... Rb6 {[%clk 0:02:07.5]} 19. Nh5 {[%clk 0:01:47.2]}
19... g6 {[%clk 0:01:55.8]} 20. Rhg1 {[%clk 0:01:46.8]} 20... Nd7 {[%clk
0:01:53.5]} 21. Nxf6+ {[%clk 0:01:42.1]} 21... Nxf6 {[%clk 0:01:53.6]} 22. h5
{[%clk 0:01:43]} 22... Nxh5 {[%clk 0:01:51.7]} 23. Qh6 {[%clk 0:01:39.6]} 23...
Rb5 {[%clk 0:01:07.7]} 24. d5 {[%clk 0:01:37.2]} 24... a3 {[%clk 0:00:55.6]} 25.
Qxh5 {[%clk 0:01:35.9]} 25... Qf6 {[%clk 0:00:55.7]} 26. Rd2 {[%clk 0:01:30.1]}
26... b3 {[%clk 0:00:51.3]} 27. Qg5 {[%clk 0:01:28.9]} 27... bxa2+ {[%clk
0:00:50.7]} 28. Ka1 {[%clk 0:00:57.7]} 28... axb2+ {[%clk 0:00:44.1]} 29. Kxa2
{[%clk 0:00:58.1]} 29... b1=Q+ {[%clk 0:00:37.9]} 30. Rxb1 {[%clk 0:00:55.7]}
30... Ra8# {[%clk 0:00:37.9]} 0-1

[Event "Late-Titled-Tuesday-Blitz-September-26-2023"]
[Site "Chess.com"]
[Date "2023.09.26"]
[Round "9"]
[White "Chessbard1972"]
[Black "Shuvalov"]
[Result "0-1"]
[WhiteElo "2375"]
[BlackElo "2471"]
[TimeControl "180+1"]
[EndTime "15:39:31 PDT"]
[Termination "Shuvalov won by resignation"]

1. d4 {[%clk 0:03:00.2]} 1... Nf6 {[%clk 0:02:57.3]} 2. Nf3 {[%clk 0:02:58.6]}
2... g6 {[%clk 0:02:56.8]} 3. c4 {[%clk 0:02:57.9]} 3... Bg7 {[%clk 0:02:56.7]}
4. g3 {[%clk 0:02:58.8]} 4... c6 {[%clk 0:02:56.3]} 5. Bg2 {[%clk 0:02:58.3]}
5... d5 {[%clk 0:02:56.9]} 6. Nc3 {[%clk 0:02:58.5]} 6... O-O {[%clk 0:02:56.4]}
7. cxd5 {[%clk 0:02:58.7]} 7... cxd5 {[%clk 0:02:56]} 8. Ne5 {[%clk 0:02:59.2]}
8... Nc6 {[%clk 0:02:50.9]} 9. f4 {[%clk 0:02:58.7]} 9... Bf5 {[%clk 0:02:46.7]}
10. O-O {[%clk 0:02:33]} 10... Rc8 {[%clk 0:02:38.2]} 11. h3 {[%clk 0:02:27.3]}
11... Ne4 {[%clk 0:02:36.2]} 12. Nxe4 {[%clk 0:02:23.2]} 12... Bxe4 {[%clk
0:02:35.8]} 13. Nf3 {[%clk 0:02:20.8]} 13... Bxf3 {[%clk 0:02:33.3]} 14. Bxf3
{[%clk 0:02:19.8]} 14... Nxd4 {[%clk 0:02:31.6]} 15. Bg2 {[%clk 0:02:16.5]}
15... e6 {[%clk 0:02:28.8]} 16. e3 {[%clk 0:01:53.1]} 16... Nf5 {[%clk
0:02:23.7]} 17. Kh2 {[%clk 0:01:52.1]} 17... Qb6 {[%clk 0:02:20.8]} 18. Qe2
{[%clk 0:01:49.5]} 18... Nd6 {[%clk 0:02:17.5]} 19. Rb1 {[%clk 0:01:46.6]} 19...
Ne4 {[%clk 0:02:11.1]} 20. Rd1 {[%clk 0:01:39.8]} 20... Nc3 {[%clk 0:01:59]} 21.
bxc3 {[%clk 0:01:37.4]} 21... Qxb1 {[%clk 0:01:59.1]} 22. Ba3 {[%clk 0:01:37.4]}
22... Qb6 {[%clk 0:01:49]} 23. Bxf8 {[%clk 0:01:36.6]} 23... Bxf8 {[%clk
0:01:47.6]} 24. Qd3 {[%clk 0:01:29]} 24... Bg7 {[%clk 0:01:45]} 25. Rc1 {[%clk
0:01:25.9]} 25... Qb2 {[%clk 0:01:43.8]} 26. Rc2 {[%clk 0:01:24.9]} 26... Qa3
{[%clk 0:01:30.8]} 27. e4 {[%clk 0:01:21.6]} 27... d4 {[%clk 0:01:26.6]} 28. e5
{[%clk 0:01:18.4]} 28... Rxc3 {[%clk 0:01:25.2]} 29. Rxc3 {[%clk 0:01:17.6]}
29... dxc3 {[%clk 0:01:26.1]} 30. Qc2 {[%clk 0:01:02.7]} 30... b5 {[%clk
0:01:22.3]} 31. Be4 {[%clk 0:00:56.7]} 31... a5 {[%clk 0:01:14.9]} 32. Qb3
{[%clk 0:00:55.7]} 32... Qxb3 {[%clk 0:01:05.8]} 33. axb3 {[%clk 0:00:48.8]}
33... a4 {[%clk 0:01:06]} 34. bxa4 {[%clk 0:00:49.3]} 34... bxa4 {[%clk
0:01:06.9]} 35. Bc2 {[%clk 0:00:42]} 35... a3 {[%clk 0:01:06.7]} 36. Bb3 {[%clk
0:00:41]} 36... a2 {[%clk 0:01:05.4]} 37. Bxa2 {[%clk 0:00:41]} 37... c2 {[%clk
0:01:05.7]} 0-1

[Event "Late-Titled-Tuesday-Blitz-September-26-2023"]
[Site "Chess.com"]
[Date "2023.09.26"]
[Round "9"]
[White "K_alena13"]
[Black "maurovargas01"]
[Result "1-0"]
[WhiteElo "2089"]
[BlackElo "1896"]
[TimeControl "180+1"]
[EndTime "15:39:33 PDT"]
[Termination "K_alena13 won on time"]

1. Nf3 {[%clk 0:03:00.9]} 1... Nc6 {[%clk 0:02:27.1]} 2. d4 {[%clk 0:02:58.6]}
2... d5 {[%clk 0:02:25.3]} 3. c4 {[%clk 0:02:58.1]} 3... e6 {[%clk 0:02:21.9]}
4. Nc3 {[%clk 0:02:56]} 4... a6 {[%clk 0:02:16.8]} 5. e3 {[%clk 0:02:54.5]} 5...
Nf6 {[%clk 0:01:47.7]} 6. Bd3 {[%clk 0:02:51.4]} 6... dxc4 {[%clk 0:01:45.5]} 7.
Bxc4 {[%clk 0:02:52.3]} 7... b5 {[%clk 0:01:44.6]} 8. Bd3 {[%clk 0:02:47.8]}
8... Bb7 {[%clk 0:01:44.4]} 9. O-O {[%clk 0:02:47.1]} 9... Bd6 {[%clk
0:01:38.1]} 10. a3 {[%clk 0:02:44.9]} 10... O-O {[%clk 0:01:36.9]} 11. e4 {[%clk
0:02:37.9]} 11... e5 {[%clk 0:01:26.1]} 12. dxe5 {[%clk 0:02:24.9]} 12... Nxe5
{[%clk 0:01:24.2]} 13. Nxe5 {[%clk 0:02:24]} 13... Bxe5 {[%clk 0:01:22.8]} 14.
f4 {[%clk 0:02:19.7]} 14... Bd4+ {[%clk 0:01:06.9]} 15. Kh1 {[%clk 0:02:15.6]}
15... Bxc3 {[%clk 0:01:04.9]} 16. bxc3 {[%clk 0:02:16.5]} 16... Bxe4 {[%clk
0:00:52.6]} 17. Bxe4 {[%clk 0:02:13.9]} 17... Nxe4 {[%clk 0:00:50.8]} 18. Qf3
{[%clk 0:02:10.5]} 18... f5 {[%clk 0:00:38.7]} 19. g4 {[%clk 0:01:54.5]} 19...
Nd2 {[%clk 0:00:16.8]} 20. Bxd2 {[%clk 0:01:45.9]} 20... Qxd2 {[%clk 0:00:15.8]}
21. Rad1 {[%clk 0:01:44.2]} 21... Qa2 {[%clk 0:00:11.5]} 22. gxf5 {[%clk
0:01:42.9]} 22... Rae8 {[%clk 0:00:10.5]} 23. Qd5+ {[%clk 0:01:30.1]} 23...
Qxd5+ {[%clk 0:00:07.5]} 24. Rxd5 {[%clk 0:01:31]} 24... Rf6 {[%clk 0:00:06.2]}
25. Rc5 {[%clk 0:01:26.9]} 25... c6 {[%clk 0:00:03.9]} 26. Rf2 {[%clk 0:01:26]}
26... Re1+ {[%clk 0:00:02.7]} 27. Kg2 {[%clk 0:01:25.7]} 1-0

[Event "Late-Titled-Tuesday-Blitz-September-26-2023"]
[Site "Chess.com"]
[Date "2023.09.26"]
[Round "9"]
[White "agustinv04"]
[Black "aranibos"]
[Result "0-1"]
[WhiteElo "2344"]
[BlackElo "2291"]
[TimeControl "180+1"]
[EndTime "15:39:39 PDT"]
[Termination "aranibos won by resignation"]

1. e4 {[%clk 0:03:00.9]} 1... c6 {[%clk 0:02:56.2]} 2. d4 {[%clk 0:03:00.6]}
2... d5 {[%clk 0:02:56.7]} 3. exd5 {[%clk 0:03:01.5]} 3... cxd5 {[%clk
0:02:56.5]} 4. Bd3 {[%clk 0:03:02]} 4... a6 {[%clk 0:02:57]} 5. c3 {[%clk
0:02:57.8]} 5... Nc6 {[%clk 0:02:57.2]} 6. Bf4 {[%clk 0:02:56.9]} 6... Nf6
{[%clk 0:02:57.1]} 7. Nf3 {[%clk 0:02:45.3]} 7... Bg4 {[%clk 0:02:55.5]} 8. Nbd2
{[%clk 0:02:44.9]} 8... e6 {[%clk 0:02:53.8]} 9. O-O {[%clk 0:02:44.7]} 9... Bd6
{[%clk 0:02:53.6]} 10. Bxd6 {[%clk 0:02:45]} 10... Qxd6 {[%clk 0:02:53.3]} 11.
h3 {[%clk 0:02:43.2]} 11... Bxf3 {[%clk 0:02:52.8]} 12. Nxf3 {[%clk 0:02:41.7]}
12... O-O {[%clk 0:02:53.4]} 13. a4 {[%clk 0:02:41.4]} 13... e5 {[%clk
0:02:51.1]} 14. dxe5 {[%clk 0:02:39.3]} 14... Nxe5 {[%clk 0:02:51.6]} 15. Nxe5
{[%clk 0:02:40.2]} 15... Qxe5 {[%clk 0:02:51.4]} 16. Re1 {[%clk 0:02:31.9]}
16... Qc7 {[%clk 0:02:42.2]} 17. Qb3 {[%clk 0:02:05.5]} 17... Rad8 {[%clk
0:02:41.5]} 18. Rad1 {[%clk 0:02:05.5]} 18... Rd6 {[%clk 0:02:32.4]} 19. Be2
{[%clk 0:02:00.8]} 19... h6 {[%clk 0:02:30.5]} 20. Bf3 {[%clk 0:02:00.4]} 20...
Rfd8 {[%clk 0:02:31]} 21. Rd4 {[%clk 0:01:57]} 21... Qc6 {[%clk 0:02:25.2]} 22.
Red1 {[%clk 0:01:55]} 22... b5 {[%clk 0:02:25.2]} 23. axb5 {[%clk 0:01:53.5]}
23... axb5 {[%clk 0:02:25.6]} 24. Qb4 {[%clk 0:01:45.9]} 24... Qb6 {[%clk
0:02:10.6]} 25. g3 {[%clk 0:01:39.9]} 25... g6 {[%clk 0:02:07.2]} 26. Kg2 {[%clk
0:01:36.9]} 26... Kg7 {[%clk 0:02:07.7]} 27. b3 {[%clk 0:01:37.2]} 27... Qc6
{[%clk 0:02:00.1]} 28. c4 {[%clk 0:01:33.1]} 28... bxc4 {[%clk 0:02:00.2]} 29.
bxc4 {[%clk 0:01:33]} 29... Ne8 {[%clk 0:01:50.4]} 30. Bxd5 {[%clk 0:01:20.5]}
30... Qc7 {[%clk 0:01:50.6]} 31. c5 {[%clk 0:01:05.6]} 31... Rxd5 {[%clk
0:01:27.7]} 32. Rxd5 {[%clk 0:01:06.5]} 32... Qc6 {[%clk 0:01:27.5]} 33. Qd4+
{[%clk 0:00:14.1]} 33... Nf6 {[%clk 0:01:25.6]} 34. Kh2 {[%clk 0:00:07.6]} 34...
Rxd5 {[%clk 0:01:25.5]} 0-1

[Event "Late-Titled-Tuesday-Blitz-September-26-2023"]
[Site "Chess.com"]
[Date "2023.09.26"]
[Round "9"]
[White "EsmeraldasAnderson03"]
[Black "Arteler"]
[Result "0-1"]
[WhiteElo "2434"]
[BlackElo "2593"]
[TimeControl "180+1"]
[EndTime "15:39:48 PDT"]
[Termination "Arteler won by resignation"]

1. d4 {[%clk 0:02:33.6]} 1... d5 {[%clk 0:02:59.9]} 2. c4 {[%clk 0:02:33.9]}
2... c6 {[%clk 0:03:00.3]} 3. cxd5 {[%clk 0:02:34.2]} 3... cxd5 {[%clk
0:03:00.7]} 4. Nc3 {[%clk 0:02:35.1]} 4... Nc6 {[%clk 0:03:00.8]} 5. Bf4 {[%clk
0:02:35.6]} 5... Nf6 {[%clk 0:03:01.4]} 6. e3 {[%clk 0:02:36.2]} 6... e6 {[%clk
0:03:00.8]} 7. Nf3 {[%clk 0:02:36.7]} 7... Be7 {[%clk 0:03:00.9]} 8. Rc1 {[%clk
0:02:36.5]} 8... O-O {[%clk 0:03:01.4]} 9. Bd3 {[%clk 0:02:36.5]} 9... a6 {[%clk
0:02:58.5]} 10. O-O {[%clk 0:02:35.3]} 10... Bd7 {[%clk 0:02:58.1]} 11. h3
{[%clk 0:02:35]} 11... b5 {[%clk 0:02:56.9]} 12. a4 {[%clk 0:02:35.4]} 12... b4
{[%clk 0:02:47.3]} 13. Nb1 {[%clk 0:02:35.5]} 13... Na5 {[%clk 0:02:37.5]} 14.
Bc7 {[%clk 0:02:34.1]} 14... Qe8 {[%clk 0:02:26.1]} 15. Bxa5 {[%clk 0:02:33.1]}
15... Bxa4 {[%clk 0:02:27]} 16. b3 {[%clk 0:02:32.8]} 16... Bb5 {[%clk
0:02:19.9]} 17. Bc7 {[%clk 0:02:31.2]} 17... a5 {[%clk 0:02:04]} 18. Qe2 {[%clk
0:02:23.6]} 18... Bxd3 {[%clk 0:01:46.6]} 19. Qxd3 {[%clk 0:02:24.5]} 19... Ne4
{[%clk 0:01:47]} 20. Nbd2 {[%clk 0:02:15.9]} 20... Nc3 {[%clk 0:01:47]} 21. Nb1
{[%clk 0:02:16.6]} 21... Ne4 {[%clk 0:01:38.4]} 22. Nfd2 {[%clk 0:02:15.5]}
22... Nf6 {[%clk 0:01:34.8]} 23. e4 {[%clk 0:02:06.7]} 23... dxe4 {[%clk
0:01:30.6]} 24. Nxe4 {[%clk 0:02:06.7]} 24... Nd5 {[%clk 0:01:30.6]} 25. Bd6
{[%clk 0:01:53]} 25... f5 {[%clk 0:01:20.5]} 26. Nbd2 {[%clk 0:01:16.4]} 26...
fxe4 {[%clk 0:01:20.1]} 27. Nxe4 {[%clk 0:01:17.3]} 27... Bxd6 {[%clk
0:01:15.3]} 28. Nxd6 {[%clk 0:01:18.1]} 28... Qd7 {[%clk 0:01:15.4]} 29. Ne4
{[%clk 0:01:14.5]} 29... Nf4 {[%clk 0:01:15.2]} 30. Qc4 {[%clk 0:01:12.8]} 30...
Qxd4 {[%clk 0:01:14.4]} 31. Qxd4 {[%clk 0:01:02.8]} 31... Ne2+ {[%clk
0:01:14.6]} 32. Kh2 {[%clk 0:01:03.5]} 32... Nxd4 {[%clk 0:01:15.5]} 33. Rb1
{[%clk 0:01:03.3]} 33... Rac8 {[%clk 0:01:13.1]} 34. Rfd1 {[%clk 0:01:02.1]}
34... Rfd8 {[%clk 0:01:12.9]} 35. Rd3 {[%clk 0:01:00.3]} 35... Rd5 {[%clk
0:01:11]} 36. Rbd1 {[%clk 0:01:00]} 36... Nxb3 {[%clk 0:01:10.7]} 37. Rxd5
{[%clk 0:00:58.7]} 37... exd5 {[%clk 0:01:11.6]} 38. Rxd5 {[%clk 0:00:58.2]}
38... a4 {[%clk 0:01:11.6]} 39. Rb5 {[%clk 0:00:58.5]} 39... a3 {[%clk 0:01:10]}
40. Rxb4 {[%clk 0:00:50.8]} 40... a2 {[%clk 0:01:10]} 41. Rxb3 {[%clk
0:00:51.3]} 41... a1=Q {[%clk 0:01:10.3]} 42. Ng3 {[%clk 0:00:51]} 42... Qe5
{[%clk 0:01:09.2]} 43. Re3 {[%clk 0:00:50.5]} 43... Qf4 {[%clk 0:01:09.2]} 44.
Rf3 {[%clk 0:00:50.9]} 44... Qd6 {[%clk 0:01:09.5]} 45. h4 {[%clk 0:00:49.3]}
45... Rc4 {[%clk 0:01:08.5]} 46. Kh3 {[%clk 0:00:49.6]} 46... Qe6+ {[%clk
0:01:07.7]} 0-1

[Event "Late-Titled-Tuesday-Blitz-September-26-2023"]
[Site "Chess.com"]
[Date "2023.09.26"]
[Round "9"]
[White "Smiechu"]
[Black "dedpihto_v_kozhanom_palto"]
[Result "0-1"]
[WhiteElo "2544"]
[BlackElo "2703"]
[TimeControl "180+1"]
[EndTime "15:39:50 PDT"]
[Termination "dedpihto_v_kozhanom_palto won by checkmate"]

1. e4 {[%clk 0:03:00.9]} 1... c5 {[%clk 0:03:00.2]} 2. Nf3 {[%clk 0:03:00.6]}
2... d6 {[%clk 0:03:00.7]} 3. d4 {[%clk 0:03:01.1]} 3... cxd4 {[%clk 0:03:01.6]}
4. Nxd4 {[%clk 0:03:01.6]} 4... Nf6 {[%clk 0:03:02]} 5. Nc3 {[%clk 0:03:02.3]}
5... a6 {[%clk 0:03:02.6]} 6. Be3 {[%clk 0:03:02.7]} 6... e5 {[%clk 0:03:03.1]}
7. Nb3 {[%clk 0:03:02.6]} 7... Be6 {[%clk 0:03:03.6]} 8. Qd2 {[%clk 0:03:02.9]}
8... Be7 {[%clk 0:02:59.2]} 9. O-O-O {[%clk 0:03:02.3]} 9... Nbd7 {[%clk
0:02:57]} 10. f4 {[%clk 0:03:01.7]} 10... exf4 {[%clk 0:02:54.9]} 11. Bxf4
{[%clk 0:03:01.7]} 11... Ne5 {[%clk 0:02:55]} 12. Kb1 {[%clk 0:02:48.6]} 12...
O-O {[%clk 0:02:53.7]} 13. h3 {[%clk 0:02:33.3]} 13... Rc8 {[%clk 0:02:53.4]}
14. g4 {[%clk 0:02:24.6]} 14... b5 {[%clk 0:02:48.4]} 15. g5 {[%clk 0:02:21.1]}
15... Nh5 {[%clk 0:02:44.9]} 16. Bxe5 {[%clk 0:02:04.6]} 16... dxe5 {[%clk
0:02:45.8]} 17. Qe2 {[%clk 0:02:01.9]} 17... Qc7 {[%clk 0:02:46]} 18. Qxh5
{[%clk 0:01:51.9]} 18... b4 {[%clk 0:02:46.5]} 19. Nd5 {[%clk 0:01:45.8]} 19...
Qxc2+ {[%clk 0:02:47.4]} 20. Ka1 {[%clk 0:01:45.2]} 20... Bxd5 {[%clk
0:02:35.7]} 21. Bd3 {[%clk 0:01:32]} 21... g6 {[%clk 0:02:21]} 22. Qf3 {[%clk
0:01:22.6]} 22... Bxb3 {[%clk 0:01:43.4]} 23. Bxc2 {[%clk 0:01:21.2]} 23... Bxc2
{[%clk 0:01:44.3]} 24. Rdg1 {[%clk 0:01:09.7]} 24... b3 {[%clk 0:01:38.8]} 25.
a3 {[%clk 0:01:06.5]} 25... Bc5 {[%clk 0:01:27]} 26. h4 {[%clk 0:01:00.6]} 26...
Bd4 {[%clk 0:01:27]} 27. h5 {[%clk 0:00:54.7]} 27... Rc5 {[%clk 0:01:18.1]} 28.
Rd1 {[%clk 0:00:42]} 28... Bxd1 {[%clk 0:01:13.4]} 29. Rxd1 {[%clk 0:00:41.4]}
29... Rfc8 {[%clk 0:01:08.7]} 30. Qf1 {[%clk 0:00:26.6]} 30... Rc2 {[%clk
0:01:01.5]} 31. Qxa6 {[%clk 0:00:17]} 31... Rc1+ {[%clk 0:00:59.9]} 32. Rxc1
{[%clk 0:00:16.3]} 32... Rxc1# {[%clk 0:01:00.8]} 0-1

[Event "Late-Titled-Tuesday-Blitz-September-26-2023"]
[Site "Chess.com"]
[Date "2023.09.26"]
[Round "9"]
[White "Andrej2004"]
[Black "Cambek64"]
[Result "0-1"]
[WhiteElo "2568"]
[BlackElo "2476"]
[TimeControl "180+1"]
[EndTime "15:39:50 PDT"]
[Termination "Cambek64 won by resignation"]

1. Nf3 {[%clk 0:03:00.9]} 1... b5 {[%clk 0:02:58.5]} 2. a4 {[%clk 0:02:59]} 2...
b4 {[%clk 0:02:56.4]} 3. c3 {[%clk 0:02:56.2]} 3... e6 {[%clk 0:02:46.2]} 4. g3
{[%clk 0:02:54.6]} 4... Bb7 {[%clk 0:02:44.6]} 5. Bg2 {[%clk 0:02:54.9]} 5...
Nf6 {[%clk 0:02:44.3]} 6. O-O {[%clk 0:02:54.9]} 6... a5 {[%clk 0:02:42.8]} 7.
d4 {[%clk 0:02:54.6]} 7... Be7 {[%clk 0:02:37.1]} 8. Nbd2 {[%clk 0:02:52.1]}
8... O-O {[%clk 0:02:36.3]} 9. Nc4 {[%clk 0:02:50.8]} 9... d5 {[%clk 0:02:17.6]}
10. Nce5 {[%clk 0:02:50.2]} 10... c5 {[%clk 0:02:17.4]} 11. dxc5 {[%clk
0:02:24.4]} 11... Bxc5 {[%clk 0:02:14.8]} 12. Nd3 {[%clk 0:02:24.3]} 12... Bd6
{[%clk 0:02:11.6]} 13. cxb4 {[%clk 0:02:21]} 13... axb4 {[%clk 0:02:12]} 14. Nd4
{[%clk 0:02:20.6]} 14... Nc6 {[%clk 0:02:08]} 15. Nb5 {[%clk 0:02:19]} 15... Bb8
{[%clk 0:02:02.6]} 16. Bd2 {[%clk 0:02:10.2]} 16... Ne4 {[%clk 0:01:52.1]} 17.
Nxb4 {[%clk 0:02:03.6]} 17... Nxd2 {[%clk 0:01:45.5]} 18. Qxd2 {[%clk
0:02:04.5]} 18... Qa5 {[%clk 0:01:41.4]} 19. b3 {[%clk 0:01:12.5]} 19... Qxb4
{[%clk 0:01:36.7]} 20. Qb2 {[%clk 0:01:12.7]} 20... Be5 {[%clk 0:01:34.5]} 21.
Qc2 {[%clk 0:01:12.8]} 21... Bxa1 {[%clk 0:01:30.9]} 22. Rxa1 {[%clk 0:01:13.7]}
22... Nd4 {[%clk 0:01:21.7]} 23. Nxd4 {[%clk 0:01:13.3]} 23... Qxd4 {[%clk
0:01:21.1]} 24. Rd1 {[%clk 0:01:14]} 24... Qb4 {[%clk 0:01:19.8]} 25. e3 {[%clk
0:01:14.3]} 25... Rfc8 {[%clk 0:01:18.8]} 26. Qb1 {[%clk 0:01:14.4]} 26... Rc3
{[%clk 0:01:16.3]} 27. h3 {[%clk 0:01:08.5]} 27... Rxb3 {[%clk 0:01:13.9]} 28.
Qc2 {[%clk 0:01:08]} 28... Rc8 {[%clk 0:01:13.1]} 29. Qa2 {[%clk 0:01:03.6]}
29... Rb2 {[%clk 0:01:08]} 30. Qa1 {[%clk 0:01:03.9]} 30... g6 {[%clk
0:00:54.2]} 31. a5 {[%clk 0:01:00.6]} 31... Ba6 {[%clk 0:00:53.8]} 32. Rd4
{[%clk 0:00:52.7]} 32... Rb1+ {[%clk 0:00:52.2]} 33. Kh2 {[%clk 0:00:53.3]}
33... Rxa1 {[%clk 0:00:51.2]} 34. Rxb4 {[%clk 0:00:54]} 34... Rxa5 {[%clk
0:00:51.5]} 35. e4 {[%clk 0:00:53.4]} 35... dxe4 {[%clk 0:00:49]} 36. Rxe4
{[%clk 0:00:54.3]} 36... Bb7 {[%clk 0:00:45.1]} 0-1